bitfinex-derivatives/quotes_ETHF0:USTF0_20250321
["timestamp","ask_amount","ask_price","bid_price","bid_amount"]
[1742595482902,6.64010944,1972.0,1971.9,1.01463]
[1742595483095,6.3330817,1972.0,1971.9,1.01463]
[1742595483297,4.26758,1972.0,1971.9,1.68293]
[1742595483604,5.54217,1972.1,1972.0,1.01458]
[1742595483805,9.80792842,1972.1,1972.0,2.35678]
[1742595484010,9.80793411,1972.1,1972.0,2.35678]
[1742595484197,8.79517,1972.1,1972.0,2.35678]
[1742595484798,9.8077835,1972.1,1972.0,2.35678]
[1742595485605,10.86030971,1972.1,1972.0,2.35678]
[1742595485798,6.63989621,1972.1,1972.0,2.35678]
[1742595486005,8.79517,1972.1,1972.0,2.35678]
[1742595487107,9.80761287,1972.1,1972.0,2.35678]
[1742595487610,8.79517,1972.1,1972.0,2.35678]
[1742595488712,5.58737,1972.1,1972.0,2.35678]
[1742595488912,4.26757,1972.1,1972.0,2.35678]
[1742595489112,3.253,1972.1,1972.0,2.35678]
[1742595489313,48.2644,1972.2,1972.1,1.01453]
[1742595489500,51.5174,1972.2,1972.1,3.02703]
[1742595490403,52.53188,1972.2,1972.1,3.02703]
[1742595491018,46.903,1972.2,1972.1,3.02703]
[1742595491213,47.91748,1972.2,1972.1,3.02703]
[1742595491614,46.903,1972.2,1972.1,3.02703]
[1742595493217,47.91748,1972.2,1972.1,3.02703]
[1742595493417,46.903,1972.2,1972.1,3.02703]
[1742595494820,47.91748,1972.2,1972.1,3.02703]
[1742595495317,49.27618,1972.2,1972.1,3.02703]
[1742595495708,49.27618,1972.2,1972.1,1.3575]
[1742595495911,1.01458,1972.0,1971.9,0.6711]
[1742595496110,1.01458,1972.0,1971.6,2.53688]
[1742595496111,1.01468,1971.8,1971.7,1.70109]
[1742595496312,1.01468,1971.8,1971.7,2.98489]
[1742595496512,1.01468,1971.8,1971.7,2.29849]
[1742595496711,2.37338,1971.8,1971.7,1.2838]
[1742595496918,2.37338,1971.8,1971.7,2.29853]
[1742595499826,1.01489,1971.5,1971.4,1.01485]
[1742595500131,1.01489,1971.5,1971.4,2.43345]
[1742595500532,2.33849,1971.5,1971.4,2.43345]
[1742595500829,1.3236,1971.5,1971.4,2.43345]
[1742595501029,4.26683,1971.6,1971.5,1.01484]
[1742595501226,5.59043,1971.6,1971.5,1.01484]
[1742595501431,5.59043,1971.6,1971.5,2.43344]
[1742595502431,8.79823,1971.6,1971.5,2.43344]
[1742595505332,8.79823,1971.6,1971.5,3.08124]
[1742595506132,8.79823,1971.6,1971.5,2.43344]
[1742595506532,8.79823,1971.6,1971.5,1.4186]
[1742595506735,8.79823,1971.6,1971.5,2.43344]
[1742595507040,8.79823,1971.6,1971.5,1.4186]
[1742595507243,8.79823,1971.6,1971.5,2.43344]
[1742595513937,8.79823,1971.6,1971.5,3.11254]
[1742595514539,6.6805,1971.8,1971.5,3.11254]
[1742595514540,6.98272,1971.8,1971.7,1.01473]
[1742595514739,11.62622,1971.8,1971.7,1.01473]
[1742595515046,11.62622,1971.8,1971.7,3.04873]
[1742595515639,5.65822,1971.8,1971.7,3.04873]
[1742595516641,8.86602,1971.8,1971.7,3.04873]
[1742595517437,9.87701247,1971.8,1971.7,3.04873]
[1742595517642,9.87701247,1971.8,1971.7,2.37823]
[1742595518539,8.86602,1971.8,1971.7,2.37823]
[1742595520353,9.87792528,1971.8,1971.7,2.37823]
[1742595520650,9.87790884,1971.8,1971.7,2.37823]
[1742595521443,6.62490884,1971.8,1971.7,2.37823]
[1742595521643,9.87790884,1971.8,1971.7,2.37823]
[1742595522647,9.87790884,1971.8,1971.7,1.3635]
[1742595522952,1.01489,1971.5,1971.4,1.01484]
[1742595523344,1.01489,1971.4,1971.3,1.66552673]
[1742595523543,7.47569,1971.4,1971.3,1.66552673]
[1742595523750,7.47569,1971.4,1971.3,1.66555673]
[1742595524052,9.19759622,1971.4,1971.3,1.66555673]
[1742595524245,9.19759622,1971.4,1971.3,2.95575673]
[1742595524445,10.25094364,1971.4,1971.3,2.95575673]
[1742595524646,10.25094364,1971.4,1971.3,1.94081673]
[1742595524849,10.25094364,1971.4,1971.3,2.95575673]
[1742595525039,9.19759622,1971.4,1971.3,1.94081673]
[1742595525244,9.19759622,1971.4,1971.3,2.95575673]
[1742595526155,10.25149396,1971.4,1971.3,2.95575673]
[1742595526444,9.19759622,1971.4,1971.3,2.95575673]
[1742595527447,9.19759622,1971.4,1971.3,1.94081673]
[1742595527847,10.25169205,1971.4,1971.3,1.94081673]
[1742595529950,11.64629205,1971.4,1971.3,1.94081673]
[1742595530547,6.66950205,1971.4,1971.3,2.95575673]
[1742595530751,1.05409583,1971.4,1971.3,2.95575673]
[1742595531054,2.06898583,1971.4,1971.3,2.95575673]
[1742595531552,1.01489,1971.4,1971.3,2.95575673]
[1742595531753,1.0139984,1971.4,1971.3,2.95575673]
[1742595532152,1.01489,1971.4,1971.3,2.95575673]
[1742595532347,8.84398,1971.5,1971.4,1.01489]
[1742595532554,5.32092568,1971.5,1971.4,2.34449]
[1742595532752,2.06792568,1971.5,1971.4,2.34449]
[1742595532955,1.05395328,1971.5,1971.4,2.34449]
[1742595533156,51.17384,1971.6,1971.5,1.01484]
[1742595533354,51.17384,1971.6,1971.5,2.34444]
[1742595533355,52.18785336,1971.6,1971.5,2.34444]
[1742595533556,54.57065446,1971.6,1971.5,3.00064]
[1742595535753,54.57065446,1971.6,1971.5,1.3296]
[1742595535957,55.24985446,1971.6,1971.5,1.3296]
[1742595536959,55.24985446,1971.6,1971.5,2.34444]
[1742595537159,54.57065446,1971.6,1971.5,2.34444]
[1742595537458,54.57065446,1971.6,1971.5,3.05244]
[1742595538556,3.08285446,1971.6,1971.5,3.05244]
[1742595538756,6.33585446,1971.6,1971.5,3.05244]
[1742595539457,7.74425446,1971.6,1971.5,3.05244]
[1742595542463,7.74425446,1971.6,1971.5,2.34444]
[1742595542663,7.74425446,1971.6,1971.5,1.3296]
[1742595544163,7.74425446,1971.6,1971.5,2.34444]
[1742595545166,6.33585446,1971.6,1971.5,2.34444]
[1742595545563,2.06801446,1971.6,1971.5,3.04694]
[1742595545766,4.3070011,1971.6,1971.5,3.04694]
[1742595546065,3.253,1971.6,1971.5,3.04694]
[1742595546365,4.26779,1971.6,1971.5,3.04694]
[1742595547162,5.28193361,1971.6,1971.5,3.04694]
[1742595547463,4.26779,1971.6,1971.5,3.04694]
[1742595547661,3.253,1971.6,1971.5,3.04694]
[1742595548065,1.01413256,1971.8,1971.6,1.01479]
[1742595548265,54.38343,1971.9,1971.8,1.01468]
[1742595548468,7.47543,1971.9,1971.8,1.01468]
[1742595548667,7.47543,1971.9,1971.8,3.03148]
[1742595548970,6.4608,1971.9,1971.8,3.03148]
[1742595549161,7.47543,1971.9,1971.8,3.03148]
[1742595549763,6.4608,1971.9,1971.8,3.03148]
[1742595550870,7.47543,1971.9,1971.8,3.03148]
[1742595551364,8.83023,1971.9,1971.8,3.03148]
[1742595553976,6.4608,1971.9,1971.8,3.03148]
[1742595554371,7.47543,1971.9,1971.8,3.03148]
[1742595554965,8.88193,1971.9,1971.8,3.03148]
[1742595555574,8.88193,1971.9,1971.8,2.35608]
[1742595555776,9.58553,1971.9,1971.8,2.35608]
[1742595556180,9.58553,1971.9,1971.8,1.3414]
[1742595556378,10.59809574,1971.9,1971.8,1.3414]
[1742595556882,11.65059448,1971.9,1971.8,1.3414]
[1742595558273,10.59809574,1971.9,1971.8,1.3414]
[1742595559178,10.59809574,1971.9,1971.8,2.35608]
[1742595559379,11.65072782,1971.9,1971.8,1.3414]
[1742595562981,1.01468,1971.8,1971.7,0.689]
[1742595563277,1.01489,1971.4,1971.3,0.00761673]
[1742595563475,4.26689,1971.4,1971.3,1.32841673]
[1742595563679,5.27945574,1971.4,1971.3,1.32841673]
[1742595563880,6.57015574,1971.4,1971.3,1.32841673]
[1742595564083,7.62278782,1971.4,1971.3,1.32841673]
[1742595564785,7.62278782,1971.4,1971.3,2.34335673]
[1742595565789,6.57015574,1971.4,1971.3,2.34335673]
[1742595567079,3.252,1971.4,1971.3,2.34335673]
[1742595567283,0.6475,1971.6,1971.5,1.01479]
[1742595567284,1.01481,1971.6,1971.5,1.01479]
[1742595567487,4.26681,1971.6,1971.5,1.01479]
[1742595567689,4.26681,1971.6,1971.5,3.76079]
[1742595568591,6.65183529,1971.6,1971.5,3.76079]
[1742595569795,5.63941,1971.6,1971.5,3.76079]
[1742595570792,5.63941,1971.6,1971.5,3.06719]
[1742595570993,6.65164291,1971.6,1971.5,3.06719]
[1742595571695,6.65164291,1971.6,1971.5,2.0524]
[1742595572286,7.70378783,1971.6,1971.5,2.0524]
[1742595573287,7.70378783,1971.6,1971.5,3.06724]
[1742595573487,4.30414492,1971.6,1971.5,3.06724]
[1742595573689,3.252,1971.6,1971.5,3.06724]
[1742595579196,3.252,1971.6,1971.5,3.74554]
[1742595579593,3.2078,1971.7,1971.6,1.01479]
[1742595579896,3.2078,1971.7,1971.6,2.39529]
[1742595580093,4.22253,1971.7,1971.6,2.39529]
[1742595580285,4.5725,1971.7,1971.6,2.39529]
[1742595580796,3.2078,1971.7,1971.6,2.39529]
[1742595585994,69.14705553,1972.1,1971.6,7.12516]
[1742595586290,3.252,1971.9,1971.8,1.01468]
[1742595586495,3.252,1971.9,1971.8,1.68838]
[1742595586796,67.78245553,1972.1,1972.0,1.01458]
[1742595587702,50.151,1972.1,1972.0,1.01458]
[1742595588800,3.2078,1972.3,1971.9,0.6677]
[1742595588994,3.252,1972.2,1972.1,1.01453]
[1742595589489,3.252,1972.3,1972.2,1.01448]
[1742595589689,4.26642,1972.3,1972.2,1.01448]
[1742595590697,5.58152,1972.3,1972.2,1.01448]
[1742595590895,8.78932,1972.3,1972.2,1.01448]
[1742595591297,9.8011405,1972.3,1972.2,1.01448]
[1742595591597,8.78932,1972.3,1972.2,1.01448]
[1742595592003,9.80092374,1972.3,1972.2,1.01448]
[1742595592395,3.25961673,1972.4,1972.3,1.01442]
[1742595592594,4.58941673,1972.4,1972.3,1.01442]
[1742595593805,3.25961673,1972.4,1972.3,1.01442]
[1742595594107,0.00761673,1972.4,1972.3,1.01442]
[1742595594993,0.00761673,1972.4,1972.3,1.67642]
[1742595601206,1.01451,1972.2,1972.1,1.01447]
[1742595601412,1.01453,1972.1,1972.0,3.70653391]
[1742595601603,2.35603,1972.1,1972.0,3.70653391]
[1742595602104,2.35603,1972.1,1972.0,0.6635]
[1742595602504,2.35603,1972.1,1972.0,1.67808]
[1742595607718,1.3415,1972.1,1972.0,1.67808]
[1742595608008,3.2078,1972.2,1972.1,1.01453]
[1742595608217,0.7063,1972.3,1972.2,1.01448]
[1742595608218,3.251,1972.3,1972.2,1.01448]
[1742595608405,5.64593,1972.3,1972.2,1.01448]
[1742595608702,5.64593,1972.3,1972.2,2.39128]
[1742595611713,3.251,1972.3,1972.2,2.39128]
[1742595613618,4.6235,1972.3,1972.2,2.39128]
[1742595613816,5.63792,1972.3,1972.2,2.39128]
[1742595615417,2.38692,1972.3,1972.2,2.39128]
[1742595618011,1.3725,1972.3,1972.2,2.39128]
[1742595619018,2.38692,1972.3,1972.2,2.39128]
[1742595620820,1.3725,1972.3,1972.2,2.39128]
[1742595621017,3.21541673,1972.4,1972.2,2.39128]
[1742595621214,6.46641673,1972.4,1972.3,2.32452]
[1742595621521,0.00761673,1972.4,1972.3,2.32452]
[1742595622821,1.33351673,1972.4,1972.3,2.32452]
[1742595624920,2.34788673,1972.4,1972.3,2.32452]
[1742595627127,3.35932708,1972.4,1972.3,2.32452]
[1742595627314,2.34788673,1972.4,1972.3,2.32452]
[1742595627519,2.98918673,1972.4,1972.3,2.32452]
[1742595627917,2.98918673,1972.4,1972.3,1.01442]
[1742595628422,4.00108257,1972.4,1972.3,1.01442]
[1742595629126,4.00108257,1972.4,1972.3,2.33062]
[1742595630026,5.0530574,1972.4,1972.3,2.33062]
[1742595637634,7.6617574,1972.4,1972.3,2.33062]
[1742595640329,3.0858574,1972.4,1972.3,2.33062]
[1742595640526,2.0714874,1972.4,1972.3,2.33062]
[1742595641234,2.03388257,1972.4,1972.3,2.33062]
[1742595641534,1.01951257,1972.4,1972.3,2.33062]
[1742595641734,2.03388257,1972.4,1972.3,2.33062]
[1742595642031,3.08651005,1972.4,1972.3,2.33062]
[1742595642238,2.07214005,1972.4,1972.3,2.33062]
[1742595642431,3.08651005,1972.4,1972.3,2.33062]
[1742595642632,2.07214005,1972.4,1972.3,2.33062]
[1742595642835,1.01951257,1972.4,1972.3,2.33062]
[1742595643434,2.03388257,1972.4,1972.3,2.33062]
[1742595643839,3.08652895,1972.4,1972.3,2.33062]
[1742595644043,4.48022895,1972.4,1972.3,2.33062]
[1742595644330,6.00180895,1972.4,1972.1,1.67469]
[1742595644536,1.01453,1972.1,1972.0,1.67805]
[1742595644836,7.47233,1972.1,1972.0,1.67805]
[1742595645037,8.48422584,1972.1,1972.0,1.67805]
[1742595645237,9.53687222,1972.1,1972.0,1.67805]
[1742595645434,9.53687222,1972.1,1971.9,1.01458]
[1742595645435,1.01458,1972.0,1971.9,1.01458]
[1742595645625,3.42017584,1972.0,1971.9,2.37048]
[1742595646132,4.47282222,1972.0,1971.9,2.37048]
[1742595648027,3.42017584,1972.0,1971.9,2.37048]
[1742595648431,2.40828,1972.0,1971.9,2.37048]
[1742595648635,3.41960478,1972.0,1971.9,2.37048]
[1742595649432,4.47059325,1972.0,1971.9,1.3559]
[1742595649634,5.12729325,1972.0,1971.9,1.3559]
[1742595649936,5.78549325,1972.0,1971.9,1.3559]
[1742595650336,4.77091325,1972.0,1971.5,5.0741]
[1742595650637,1.01468,1971.8,1971.7,2.3196]
[1742595651031,2.32628,1971.8,1971.7,2.3196]
[1742595655131,1.0146,1972.0,1971.8,1.01468]
[1742595655335,5.6229,1972.0,1971.9,3.01743]
[1742595656134,4.6083,1972.0,1971.9,3.01743]
[1742595657232,5.62288,1972.0,1971.9,3.01743]
[1742595658641,52.63313,1972.1,1972.0,1.01458]
[1742595658642,50.0968,1972.1,1972.0,1.01458]
[1742595658843,46.889,1972.1,1972.0,2.34618]
[1742595661340,2.39053,1972.1,1972.0,1.3316]
[1742595661539,3.40013271,1972.1,1972.0,1.3316]
[1742595661746,4.44959206,1972.1,1972.0,1.3316]
[1742595662440,1.01458,1972.0,1971.9,1.67538]
[1742595662755,8.76498,1972.0,1971.9,3.04088]
[1742595664446,4.2223,1972.2,1972.1,1.01453]
[1742595664745,3.21541673,1972.4,1972.3,1.01442]
[1742595664933,3.25861673,1972.4,1972.3,1.01442]
[1742595665135,0.00761673,1972.4,1972.3,1.69132]
[1742595665338,0.00761673,1972.4,1972.3,3.02122]
[1742595670642,0.00761673,1972.4,1972.3,6.22902]
[1742595673945,3.25,1972.7,1972.6,1.01427]
[1742595674744,5.5851,1972.8,1972.7,1.01422]
[1742595675054,8.83507,1972.8,1972.7,1.01422]
[1742595675254,7.8209,1972.8,1972.7,1.01422]
[1742595675552,5.62727,1972.8,1972.7,1.69872]
[1742595675752,17.63907226,1972.9,1972.8,1.01417]
[1742595678257,17.63907226,1972.9,1972.8,1.72637]
[1742595678952,0.00761673,1972.9,1972.8,1.72637]
[1742595681562,1.38021673,1972.9,1972.8,1.72637]
[1742595682964,0.00761673,1972.9,1972.8,1.72637]
[1742595683157,1.37031673,1972.9,1972.8,1.72637]
[1742595683459,2.38443673,1972.9,1972.8,1.72637]
[1742595684660,1.37031673,1972.9,1972.8,1.72637]
[1742595685358,2.38443673,1972.9,1972.8,1.72637]
[1742595689259,1.37031673,1972.9,1972.8,1.72637]
[1742595689462,2.38443673,1972.9,1972.8,1.72637]
[1742595690070,1.37031673,1972.9,1972.8,1.72637]
[1742595691167,2.38443673,1972.9,1972.8,1.72637]
[1742595694165,2.38443673,1972.9,1972.8,3.12407]
[1742595695269,1.37031673,1972.9,1972.8,3.12407]
[1742595695470,2.38443673,1972.9,1972.8,3.12407]
[1742595695671,3.04753673,1972.9,1972.8,2.41187]
[1742595696170,6.25533673,1972.9,1972.8,2.41187]
[1742595696370,1.01422,1972.8,1972.7,1.01418]
[1742595696675,5.59812,1972.8,1972.7,1.01418]
[1742595697072,1.01422,1972.7,1972.6,0.00761673]
[1742595697269,1.01442,1972.3,1972.2,1.72414]
[1742595697474,5.74385,1972.4,1972.0,0.675]
[1742595697679,1.01453,1972.1,1972.0,1.3601]
[1742595697870,1.01453,1972.1,1972.0,2.37468]
[1742595698175,3.3333106,1972.1,1972.0,2.37468]
[1742595698375,2.32263,1972.1,1972.0,2.37468]
[1742595698566,2.32263,1972.1,1971.9,1.02220673]
[1742595698567,1.01458,1972.0,1971.9,1.02220673]
[1742595698771,5.53048,1972.0,1971.9,0.00761673]
[1742595699171,6.54001142,1972.0,1971.9,0.00761673]
[1742595699377,5.53048,1972.0,1971.9,0.00761673]
[1742595701378,1.01451,1972.2,1971.9,1.02222673]
[1742595701576,1.01453,1972.1,1972.0,1.4071]
[1742595702077,2.30933,1972.1,1972.0,1.4071]
[1742595704378,1.2948,1972.1,1972.0,1.4071]
[1742595705077,2.30933,1972.1,1972.0,1.4071]
[1742595705778,2.99703,1972.1,1972.0,1.4071]
[1742595707279,1.2948,1972.1,1972.0,1.4071]
[1742595708972,1.2948,1972.1,1972.0,2.42168]
[1742595709172,1.2948,1972.1,1972.0,1.4071]
[1742595709469,1.2948,1972.1,1972.0,2.42168]
[1742595711285,2.30933,1972.1,1972.0,2.42168]
[1742595711479,1.2948,1972.1,1972.0,2.42168]
[1742595712682,2.30933,1972.1,1972.0,2.42168]
[1742595713079,3.01783,1972.1,1972.0,2.42168]
[1742595713379,1.01458,1972.0,1971.9,1.02221673]
[1742595713584,2.31328,1972.0,1971.9,2.41121673]
[1742595721889,5.56328,1972.0,1971.9,2.41121673]
[1742595723784,8.77108,1972.0,1971.9,2.41124673]
[1742595724184,8.77108,1972.0,1971.9,0.00761673]
[1742595724393,10.43778542,1972.0,1971.9,0.00761673]
[1742595725292,11.48671043,1972.0,1971.9,0.00761673]
[1742595727388,11.48671043,1972.0,1971.9,1.02224673]
[1742595727584,10.82911043,1972.0,1971.9,1.02224673]
[1742595728190,10.82911043,1972.0,1971.9,2.38054673]
[1742595731392,2.05803043,1972.0,1971.9,2.38054673]
[1742595731595,50.122,1972.3,1972.2,1.01448]
[1742595731792,46.872,1972.3,1972.2,1.01448]
[1742595731998,46.872,1972.3,1972.2,3.02008]
[1742595732402,48.2637,1972.3,1972.2,3.02008]
[1742595734796,48.2637,1972.3,1972.2,3.69668]
[1742595735899,46.872,1972.3,1972.2,3.69668]
[1742595737402,47.88642,1972.3,1972.2,3.69668]
[1742595737604,49.17302,1972.3,1972.2,3.69668]
[1742595738506,48.1586,1972.3,1972.2,3.69668]
[1742595740313,49.17302,1972.3,1972.2,3.69668]
[1742595741014,48.1586,1972.3,1972.2,3.69668]
[1742595741207,46.872,1972.3,1972.2,3.69668]
[1742595741513,1.3488,1972.5,1972.4,1.01437]
[1742595741710,7.44592793,1972.6,1972.5,1.01432]
[1742595742015,7.44594056,1972.6,1972.5,1.69982]
[1742595742213,7.44593689,1972.6,1972.5,3.05812]
[1742595742515,4.19593689,1972.6,1972.5,3.05812]
[1742595742811,3.02889919,1972.7,1972.6,1.01427]
[1742595743011,3.02889919,1972.7,1972.6,3.01457]
[1742595743214,4.37769919,1972.7,1972.6,3.01457]
[1742595744144,1.01427,1972.6,1972.5,1.01428]
[1742595744342,7.20492259,1972.6,1972.5,1.01428]
[1742595744535,8.23170919,1972.6,1972.5,1.01428]
[1742595744832,1.01432,1972.5,1972.4,2.33174]
[1742595745031,1.01442,1972.4,1972.3,1.01439]
[1742595745346,4.26442,1972.4,1972.3,1.01439]
[1742595745531,6.55481988,1972.4,1972.3,2.33179]
[1742595745835,5.56732,1972.4,1972.3,2.33179]
[1742595746228,6.55499436,1972.4,1972.3,2.33179]
[1742595747642,7.58198299,1972.4,1972.3,2.33179]
[1742595749021,10.78978299,1972.4,1972.3,2.33179]
[1742595750515,9.76279436,1972.4,1972.3,2.33179]
[1742595752221,10.79008339,1972.4,1972.3,2.33179]
[1742595754728,10.79008339,1972.4,1972.3,1.3174]
[1742595755229,1.01448,1972.2,1972.1,1.0145]
[1742595755424,7.47228,1972.2,1972.1,2.4059]
[1742595755626,8.46096911,1972.2,1972.1,2.4059]
[1742595755922,9.75586911,1972.2,1972.1,2.4059]
[1742595757128,9.75586911,1972.2,1972.1,2.40593]
[1742595757627,10.78400361,1972.2,1972.1,2.40593]
[1742595758529,10.78400361,1972.2,1972.1,1.3914]
[1742595758718,10.78400361,1972.2,1972.1,2.40593]
[1742595761433,10.78400361,1972.2,1972.1,1.3914]
[1742595761729,10.78400361,1972.2,1972.1,2.40593]
[1742595769329,9.7953145,1972.2,1972.1,2.40593]
[1742595769535,8.76718,1972.2,1972.1,2.40593]
[1742595769827,8.76718,1972.2,1972.1,1.3914]
[1742595770231,9.75714118,1972.2,1972.1,1.3914]
[1742595770534,10.78612966,1972.2,1972.1,1.3914]
[1742595770936,1.01458,1972.0,1971.9,0.00761673]
[1742595771233,7.47238,1972.0,1971.9,1.31358327]
[1742595771433,8.46234118,1972.0,1971.9,1.31358327]
[1742595771637,10.53774118,1972.0,1971.9,1.31358327]
[1742595772435,11.56672966,1972.0,1971.9,1.31358327]
[1742595772633,1.01479,1971.7,1971.6,1.01477]
[1742595772836,7.47259,1971.7,1971.6,1.01477]
[1742595773030,8.46255118,1971.7,1971.6,1.01477]
[1742595773229,9.84035118,1971.7,1971.6,1.01477]
[1742595773424,11.25735118,1971.7,1971.6,1.01477]
[1742595773630,12.28633966,1971.7,1971.6,1.01477]
[1742595774333,12.28633966,1971.7,1971.6,2.34987]
[1742595777841,11.25735118,1971.7,1971.6,2.34987]
[1742595778138,11.25735118,1971.7,1971.6,1.3351]
[1742595778333,11.25735118,1971.7,1971.6,2.34989]
[1742595778733,12.28453113,1971.7,1971.6,1.3351]
[1742595782851,11.25735118,1971.7,1971.6,1.3351]
[1742595783844,1.01479,1971.6,1971.5,0.00761673]
[1742595784047,3.3309317,1971.6,1971.5,1.39101673]
[1742595784250,3.3309317,1971.6,1971.5,0.00761673]
[1742595784545,4.35732149,1971.6,1971.5,0.00761673]
[1742595785343,3.36987979,1971.6,1971.5,1.39101673]
[1742595785543,2.34349,1971.6,1971.5,1.39101673]
[1742595785850,3.33080515,1971.6,1971.5,1.39101673]
[1742595786053,2.34349,1971.6,1971.5,1.39101673]
[1742595787855,1.01489,1971.4,1971.3,2.32923]
[1742595788049,7.47269,1971.4,1971.3,2.32923]
[1742595795054,1.01494,1971.3,1971.2,1.42671673]
[1742595795246,2.38484,1971.3,1971.2,2.44165673]
[1742595797754,1.01494,1971.3,1971.2,2.44165673]
[1742595801451,2.00531656,1971.3,1971.2,2.44165673]
[1742595802857,1.01509,1971.0,1970.9,1.4173]
[1742595803053,1.01515,1970.9,1970.8,1.3442]
[1742595803355,2.00588495,1970.9,1970.8,1.3442]
[1742595803749,1.01515,1970.9,1970.8,1.3442]
[1742595804151,1.01515,1970.9,1970.8,2.3594]
[1742595804546,2.00682294,1970.9,1970.8,2.3594]
[1742595804955,3.03662226,1970.9,1970.8,1.3442]
[1742595805257,4.39702226,1970.9,1970.8,1.3442]
[1742595805956,4.39702226,1970.9,1970.8,2.3594]
[1742595806150,4.39702226,1970.9,1970.8,1.3442]
[1742595806860,3.36722294,1970.9,1970.8,2.3594]
[1742595807058,2.00682294,1970.9,1970.8,2.3594]
[1742595807260,1.01515,1970.9,1970.8,1.3442]
[1742595807457,1.01515,1970.9,1970.8,2.3594]
[1742595807659,3.251,1971.0,1970.9,1.01515]
[1742595807958,4.26609,1971.0,1970.9,1.01515]
[1742595810263,1.01515,1970.9,1970.8,2.35937]
[1742595810463,4.22295,1970.9,1970.8,2.3594]
[1742595811153,5.53815,1970.9,1970.8,2.3594]
[1742595811554,5.53815,1970.9,1970.8,1.3442]
[1742595814159,5.53815,1970.9,1970.8,2.6469]
[1742595814769,5.53815,1970.9,1970.8,1.3027]
[1742595815263,4.22295,1970.9,1970.8,2.3179]
[1742595815568,3.2078,1970.9,1970.8,2.3179]
[1742595815764,3.251,1971.0,1970.9,1.01515]
[1742595815966,4.22285,1971.1,1971.0,1.01509]
[1742595816369,6.57874866,1971.1,1971.0,1.3027]
[1742595816767,7.60712186,1971.1,1971.0,1.3027]
[1742595817071,7.60712186,1971.1,1971.0,2.31779]
[1742595817274,6.24062186,1971.1,1971.0,2.31779]
[1742595817465,4.22284,1971.1,1971.0,2.31779]
[1742595819671,5.52214,1971.1,1971.0,2.31779]
[1742595822365,6.51237838,1971.1,1971.0,1.3027]
[1742595822559,5.52214,1971.1,1971.0,2.31779]
[1742595823171,6.51237729,1971.1,1971.0,2.31779]
[1742595823373,3.30457729,1971.1,1971.0,2.31779]
[1742595823560,6.51237729,1971.1,1971.0,2.31779]
[1742595823967,7.54169981,1971.1,1971.0,2.31779]
[1742595824375,7.54169981,1971.1,1971.0,1.3027]
[1742595832983,7.54169981,1971.1,1971.0,2.31779]
[1742595833185,7.54169981,1971.1,1971.0,1.3027]
[1742595834979,7.54169981,1971.1,1971.0,2.31779]
[1742595835187,9.49339981,1971.1,1971.0,2.97719]
[1742595835793,6.28559981,1971.1,1971.0,2.97719]
[1742595836590,2.01955981,1971.1,1971.0,2.97719]
[1742595839599,51.174,1971.2,1971.1,1.01504]
[1742595839899,52.16593398,1971.2,1971.1,2.42264]
[1742595840099,53.19692929,1971.2,1971.1,2.42264]
[1742595840891,6.28892929,1971.2,1971.1,2.42264]
[1742595841698,7.67332929,1971.2,1971.1,2.42264]
[1742595853203,5.27392929,1971.2,1971.1,2.42264]
[1742595853398,2.02292929,1971.2,1971.1,2.42264]
[1742595853600,1.03099531,1971.2,1971.1,2.42264]
[1742595853905,22.01152696,1971.3,1971.2,1.01499]
[1742595854105,23.00352673,1971.3,1971.2,3.10479]
[1742595854405,23.0196421,1971.3,1971.2,3.10479]
[1742595854794,23.04258233,1971.3,1971.2,3.10479]
[1742595854999,18.73841738,1971.3,1971.2,3.10479]
[1742595855301,17.74657696,1971.3,1971.2,3.10479]
[1742595856592,5.60282,1971.4,1971.3,1.01494]
[1742595856799,6.59438131,1971.4,1971.3,3.04114]
[1742595856997,7.62499509,1971.4,1971.3,3.04114]
[1742595858607,5.27217509,1971.4,1971.3,3.04114]
[1742595858906,3.25,1971.4,1971.3,3.04114]
[1742595859204,4.24140287,1971.4,1971.3,3.04114]
[1742595859506,3.25,1971.4,1971.3,3.04114]
[1742595861202,4.24139056,1971.4,1971.3,3.04114]
[1742595861406,5.58329056,1971.4,1971.3,3.04114]
[1742595861606,4.5919,1971.4,1971.3,3.04114]
[1742595862308,5.58326344,1971.4,1971.3,3.04114]
[1742595862512,5.27170641,1971.4,1971.3,3.04114]
[1742595862709,5.27163108,1971.4,1971.3,3.04114]
[1742595863310,6.56563108,1971.4,1971.3,3.04114]
[1742595863919,7.58052108,1971.4,1971.3,3.04114]
[1742595864107,7.58052108,1971.4,1971.3,2.34904]
[1742595868208,6.56563108,1971.4,1971.3,2.34904]
[1742595870811,5.53528811,1971.4,1971.3,2.34904]
[1742595871116,6.55017811,1971.4,1971.3,2.34904]
[1742595871318,5.53528811,1971.4,1971.3,2.34904]
[1742595871513,6.55017811,1971.4,1971.3,2.34904]
[1742595871816,7.57968142,1971.4,1971.3,2.34904]
[1742595880125,7.57968142,1971.4,1971.3,1.3341]
[1742595880323,1.01504,1971.2,1971.1,1.01499]
[1742595880519,1.01504,1971.2,1971.1,2.38209]
[1742595880729,6.60792811,1971.2,1971.1,2.38209]
[1742595881117,7.63743142,1971.2,1971.1,2.38209]
[1742595883526,7.63743142,1971.2,1971.1,1.3671]
[1742595883728,1.01504,1971.1,1971.0,1.01505]
[1742595884026,6.60512811,1971.1,1971.0,1.01505]
[1742595884223,7.63463142,1971.1,1971.0,1.01505]
[1742595885121,6.60512811,1971.1,1971.0,3.05405]
[1742595886224,7.63440988,1971.1,1971.0,3.05405]
[1742595889725,6.60512811,1971.1,1971.0,3.05405]
[1742595891425,3.39732811,1971.1,1971.0,3.05405]
[1742595891827,3.39576529,1971.1,1971.0,3.05405]
[1742595892132,2.40604,1971.1,1971.0,3.05405]
[1742595895136,3.249,1971.2,1971.1,1.01504]
[1742595895334,4.26399,1971.2,1971.1,3.06104]
[1742595895535,6.6578646,1971.2,1971.1,3.06104]